[Event "Titled Tuesday Blitz April 05 Early 2022"]
[White "Zlatin, Alexander"]
[Black "Xu, Yi"]
[WhiteFideId "2810549"]
[BlackFideId "8605564"]
[WhiteElo "2228"]
[BlackElo "2471"]
[Result "1/2-1/2"]
[Round "01"]
[TimeControl "180+1"]
[Date "2022.04.05"]
[WhiteClock "0:00:07"]
[BlackClock "0:00:05"]

1. d4 {[%clk 0:03:00]}  Nf6 {[%clk 0:02:48]} 2. Nc3 {[%clk 0:02:59]}  d5 {[%clk 0:02:47]} 3. Bf4 {[%clk 0:02:59]}  e6 {[%clk 0:02:43]} 4. e3 {[%clk 0:02:59]}  a6 {[%clk 0:02:43]} 5. Nf3 {[%clk 0:02:59]}  c5 {[%clk 0:02:43]} 6. dxc5 {[%clk 0:03:00]}  Bxc5 {[%clk 0:02:41]} 7. Bd3 {[%clk 0:03:00]}  Nc6 {[%clk 0:02:40]} 8. O-O {[%clk 0:03:00]}  h6 {[%clk 0:02:38]} 9. e4 {[%clk 0:02:50]}  Nb4 {[%clk 0:02:30]} 10. exd5 {[%clk 0:02:39]}  Nbxd5 {[%clk 0:02:30]} 11. Nxd5 {[%clk 0:02:35]}  Qxd5 {[%clk 0:02:30]} 12. Qe2 {[%clk 0:02:33]}  O-O {[%clk 0:02:25]} 13. Rfd1 {[%clk 0:02:31]}  Qh5 {[%clk 0:02:24]} 14. h3 {[%clk 0:02:27]}  b5 {[%clk 0:02:13]} 15. Be4 {[%clk 0:02:10]}  Ra7 {[%clk 0:02:05]} 16. Bc6 {[%clk 0:01:36]}  Bb7 {[%clk 0:01:57]} 17. Bxb7 {[%clk 0:01:35]}  Rxb7 {[%clk 0:01:58]} 18. Be5 {[%clk 0:01:29]}  Nd5 {[%clk 0:01:51]} 19. Qe4 {[%clk 0:01:30]}  f5 {[%clk 0:01:46]} 20. Qe2 {[%clk 0:01:28]}  Rd7 {[%clk 0:01:43]} 21. Re1 {[%clk 0:01:22]}  Re8 {[%clk 0:01:41]} 22. c3 {[%clk 0:01:16]}  Qf7 {[%clk 0:01:31]} 23. Rad1 {[%clk 0:01:16]}  Nb6 {[%clk 0:01:29]} 24. Bd4 {[%clk 0:01:10]}  Bxd4 {[%clk 0:01:28]} 25. cxd4 {[%clk 0:01:11]}  Rc7 {[%clk 0:01:23]} 26. Ne5 {[%clk 0:01:09]}  Qe7 {[%clk 0:01:21]} 27. Rc1 {[%clk 0:01:04]}  Nd5 {[%clk 0:01:19]} 28. Rxc7 {[%clk 0:01:03]}  Qxc7 {[%clk 0:01:19]} 29. Qh5 {[%clk 0:00:59]}  Rf8 {[%clk 0:01:13]} 30. Qf3 {[%clk 0:00:35]}  Qc2 {[%clk 0:01:09]} 31. Nd3 {[%clk 0:00:33]}  Re8 {[%clk 0:00:49]} 32. a3 {[%clk 0:00:33]}  Qd2 {[%clk 0:00:47]} 33. Qe2 {[%clk 0:00:28]}  Qxe2 {[%clk 0:00:44]} 34. Rxe2 {[%clk 0:00:28]}  Kf7 {[%clk 0:00:41]} 35. Rc2 {[%clk 0:00:28]}  Rb8 {[%clk 0:00:34]} 36. Rc6 {[%clk 0:00:26]}  Rb6 {[%clk 0:00:34]} 37. Rc8 {[%clk 0:00:22]}  Rb7 {[%clk 0:00:25]} 38. Ra8 {[%clk 0:00:20]}  b4 {[%clk 0:00:24]} 39. Rxa6 {[%clk 0:00:17]}  bxa3 {[%clk 0:00:23]} 40. bxa3 {[%clk 0:00:14]}  Rb1+ {[%clk 0:00:23]} 41. Kh2 {[%clk 0:00:14]}  Rd1 {[%clk 0:00:24]} 42. Ne5+ {[%clk 0:00:15]}  Kf6 {[%clk 0:00:22]} 43. Nf3 {[%clk 0:00:15]}  Ra1 {[%clk 0:00:18]} 44. Ra8 {[%clk 0:00:15]}  Ra2 {[%clk 0:00:17]} 45. Kg1 {[%clk 0:00:13]}  Ra1+ {[%clk 0:00:17]} 46. Kh2 {[%clk 0:00:13]}  Ra2 {[%clk 0:00:18]} 47. Kg1 {[%clk 0:00:14]}  Nf4 {[%clk 0:00:18]} 48. a4 {[%clk 0:00:10]}  Ne2+ {[%clk 0:00:17]} 49. Kh2 {[%clk 0:00:10]}  Nc3 {[%clk 0:00:15]} 50. a5 {[%clk 0:00:07]}  Rxf2 {[%clk 0:00:16]} 51. a6 {[%clk 0:00:08]}  Ra2 {[%clk 0:00:16]} 52. Ne5 {[%clk 0:00:08]}  Nb5 {[%clk 0:00:13]} 53. Rf8+ {[%clk 0:00:07]}  Kg5 {[%clk 0:00:09]} 54. Rf7 {[%clk 0:00:07]}  Rxa6 {[%clk 0:00:06]} 55. Rxg7+ {[%clk 0:00:07]}  Kf4 {[%clk 0:00:06]} 56. Rg6 {[%clk 0:00:05]}  Ke4 {[%clk 0:00:06]} 57. Rxh6 {[%clk 0:00:04]}  Nxd4 {[%clk 0:00:06]} 58. Nf7 {[%clk 0:00:03]}  Ra2 {[%clk 0:00:06]} 59. Ng5+ {[%clk 0:00:03]}  Ke5 {[%clk 0:00:06]} 60. Nf7+ {[%clk 0:00:04]}  Kd5 {[%clk 0:00:06]} 61. Ng5 {[%clk 0:00:04]}  e5 {[%clk 0:00:06]} 62. Rh8 {[%clk 0:00:04]}  Kc4 {[%clk 0:00:06]} 63. Re8 {[%clk 0:00:04]}  e4 {[%clk 0:00:06]} 64. h4 {[%clk 0:00:05]}  Kd3 {[%clk 0:00:04]} 65. Kg3 {[%clk 0:00:05]}  e3 {[%clk 0:00:03]} 66. h5 {[%clk 0:00:05]}  e2 {[%clk 0:00:03]} 67. h6 {[%clk 0:00:06]}  Ra1 {[%clk 0:00:03]} 68. h7 {[%clk 0:00:06]}  Rh1 {[%clk 0:00:03]} 69. Nh3 {[%clk 0:00:06]}  f4+ {[%clk 0:00:03]} 70. Kg4 {[%clk 0:00:05]}  f3 {[%clk 0:00:03]} 71. h8=Q {[%clk 0:00:05]}  fxg2 {[%clk 0:00:03]} 72. Qh7+ {[%clk 0:00:05]}  Kd2 {[%clk 0:00:03]} 73. Rd8 {[%clk 0:00:05]}  g1=Q+ {[%clk 0:00:02]} 74. Nxg1 {[%clk 0:00:05]}  Rxh7 {[%clk 0:00:03]} 75. Rxd4+ {[%clk 0:00:05]}  Ke3 {[%clk 0:00:03]} 76. Nxe2 {[%clk 0:00:05]}  Kxe2 {[%clk 0:00:04]} 77. Re4+ {[%clk 0:00:06]}  Kd3 {[%clk 0:00:04]} 78. Re6 {[%clk 0:00:07]}  Rg7+ {[%clk 0:00:04]} 79. Kf5 {[%clk 0:00:07]}  Rg3 {[%clk 0:00:05]} 80. Kf6 {[%clk 0:00:07]}  Re3 {[%clk 0:00:05]} 81. Rxe3+ {[%clk 0:00:07]}  Kxe3 {[%clk 0:00:05]} 1/2-1/2


[Site "https://www.chess.com"]

[Event "Titled Tuesday Blitz April 05 Early 2022"]
[White "Alboredo, Julia"]
[Black "Postnikov, Daniil"]
[WhiteFideId "2124807"]
[BlackFideId "4166329"]
[WhiteElo "2041"]
[BlackElo "2261"]
[Result "0-1"]
[Round "02"]
[TimeControl "180+1"]
[Date "2022.04.05"]
[WhiteClock "0:00:06"]
[BlackClock "0:00:43"]

1. e4 {[%clk 0:03:00]}  e6 {[%clk 0:02:58]} 2. d4 {[%clk 0:02:59]}  d5 {[%clk 0:02:58]} 3. Bd3 {[%clk 0:03:00]}  dxe4 {[%clk 0:02:58]} 4. Bxe4 {[%clk 0:03:01]}  Nf6 {[%clk 0:02:59]} 5. Bf3 {[%clk 0:03:00]}  c5 {[%clk 0:02:59]} 6. Ne2 {[%clk 0:02:59]}  Nc6 {[%clk 0:02:58]} 7. Be3 {[%clk 0:02:57]}  Nd5 {[%clk 0:02:57]} 8. O-O {[%clk 0:02:41]}  Nxe3 {[%clk 0:02:57]} 9. fxe3 {[%clk 0:02:42]}  g6 {[%clk 0:02:56]} 10. c3 {[%clk 0:02:40]}  Bh6 {[%clk 0:02:55]} 11. Qd3 {[%clk 0:01:58]}  O-O {[%clk 0:02:50]} 12. Na3 {[%clk 0:01:46]}  Ne5 {[%clk 0:02:47]} 13. Qe4 {[%clk 0:01:44]}  Nxf3+ {[%clk 0:02:46]} 14. Qxf3 {[%clk 0:01:45]}  Qg5 {[%clk 0:02:16]} 15. Nc2 {[%clk 0:01:28]}  e5 {[%clk 0:02:12]} 16. Qf6 {[%clk 0:01:09]}  Bf5 {[%clk 0:01:52]} 17. Rxf5 {[%clk 0:00:34]}  Qxf5 {[%clk 0:01:46]} 18. Qxf5 {[%clk 0:00:31]}  gxf5 {[%clk 0:01:47]} 19. dxe5 {[%clk 0:00:31]}  Rad8 {[%clk 0:01:42]} 20. Ng3 {[%clk 0:00:30]}  Rd2 {[%clk 0:01:34]} 21. Nxf5 {[%clk 0:00:29]}  Rxc2 {[%clk 0:01:29]} 22. Nxh6+ {[%clk 0:00:29]}  Kg7 {[%clk 0:01:28]} 23. Nf5+ {[%clk 0:00:29]}  Kg6 {[%clk 0:01:27]} 24. e4 {[%clk 0:00:27]}  Rd8 {[%clk 0:01:21]} 25. Rf1 {[%clk 0:00:27]}  Rdd2 {[%clk 0:01:17]} 26. Kh1 {[%clk 0:00:26]}  Rxb2 {[%clk 0:01:11]} 27. Ne3 {[%clk 0:00:16]}  Kg7 {[%clk 0:01:03]} 28. Nf5+ {[%clk 0:00:11]}  Kf8 {[%clk 0:00:52]} 29. e6 {[%clk 0:00:11]}  fxe6 {[%clk 0:00:49]} 30. Ne3+ {[%clk 0:00:11]}  Ke7 {[%clk 0:00:49]} 31. Nc4 {[%clk 0:00:11]}  Rf2 {[%clk 0:00:46]} 32. Rd1 {[%clk 0:00:06]}  Rxa2 {[%clk 0:00:45]} 33. Ne5 {[%clk 0:00:06]}  Rad2 {[%clk 0:00:43]} 0-1


[Site "https://www.chess.com"]

[Event "Titled Tuesday Blitz April 05 Early 2022"]
[White "Ambartsumova, Karina"]
[Black "Astafurov, Arseniy"]
[WhiteFideId "4166299"]
[BlackFideId "24175218"]
[WhiteElo "2262"]
[BlackElo "2163"]
[Result "1-0"]
[Round "02"]
[TimeControl "180+1"]
[Date "2022.04.05"]
[WhiteClock "0:00:44"]
[BlackClock "0:00:22"]

1. d4 {[%clk 0:03:00]}  Nf6 {[%clk 0:02:59]} 2. Nf3 {[%clk 0:03:00]}  d5 {[%clk 0:02:58]} 3. c4 {[%clk 0:03:00]}  c6 {[%clk 0:02:59]} 4. g3 {[%clk 0:03:00]}  dxc4 {[%clk 0:02:57]} 5. Bg2 {[%clk 0:03:00]}  b5 {[%clk 0:02:57]} 6. Ne5 {[%clk 0:02:55]}  Bb7 {[%clk 0:02:56]} 7. O-O {[%clk 0:02:55]}  e6 {[%clk 0:02:54]} 8. a4 {[%clk 0:02:54]}  a6 {[%clk 0:02:54]} 9. Nc3 {[%clk 0:02:51]}  Be7 {[%clk 0:02:25]} 10. axb5 {[%clk 0:02:36]}  axb5 {[%clk 0:02:26]} 11. Rxa8 {[%clk 0:02:36]}  Bxa8 {[%clk 0:02:25]} 12. Nxb5 {[%clk 0:02:37]}  cxb5 {[%clk 0:02:25]} 13. Bxa8 {[%clk 0:02:38]}  Nd5 {[%clk 0:02:21]} 14. Nc6 {[%clk 0:02:28]}  Qd6 {[%clk 0:02:14]} 15. Nxb8 {[%clk 0:02:27]}  Qxb8 {[%clk 0:02:12]} 16. Bc6+ {[%clk 0:02:27]}  Kf8 {[%clk 0:02:11]} 17. e4 {[%clk 0:02:09]}  Nb4 {[%clk 0:02:08]} 18. d5 {[%clk 0:01:48]}  Bc5 {[%clk 0:01:35]} 19. Be3 {[%clk 0:01:16]}  Bxe3 {[%clk 0:01:21]} 20. fxe3 {[%clk 0:01:17]}  Ke7 {[%clk 0:00:36]} 21. dxe6 {[%clk 0:00:55]}  Qd6 {[%clk 0:00:23]} 22. Rxf7+ {[%clk 0:00:52]}  Kxe6 {[%clk 0:00:23]} 23. Bd7+ {[%clk 0:00:50]}  Ke5 {[%clk 0:00:22]} 24. Rf5+ {[%clk 0:00:48]}  Kxe4 {[%clk 0:00:22]} 25. Qxd6 {[%clk 0:00:44]} 1-0


[Site "https://www.chess.com"]

[Event "Titled Tuesday Blitz April 05 Early 2022"]
[White "Araujo Filho, Luiz Antonio Coel"]
[Black "Odegov, Artem"]
[WhiteFideId "2130661"]
[BlackFideId "34183644"]
[WhiteElo "2254"]
[BlackElo "2286"]
[Result "1/2-1/2"]
[Round "02"]
[TimeControl "180+1"]
[Date "2022.04.05"]
[WhiteClock "0:00:09"]
[BlackClock "0:00:06"]

1. d4 {[%clk 0:03:00]}  Nf6 {[%clk 0:02:59]} 2. Nf3 {[%clk 0:03:01]}  c5 {[%clk 0:02:59]} 3. e3 {[%clk 0:03:01]}  d5 {[%clk 0:02:58]} 4. c3 {[%clk 0:03:00]}  Nc6 {[%clk 0:02:59]} 5. Nbd2 {[%clk 0:03:00]}  g6 {[%clk 0:02:58]} 6. Qa4 {[%clk 0:02:55]}  Bg7 {[%clk 0:02:58]} 7. dxc5 {[%clk 0:02:55]}  O-O {[%clk 0:02:57]} 8. Be2 {[%clk 0:02:54]}  Bf5 {[%clk 0:02:55]} 9. O-O {[%clk 0:02:53]}  e5 {[%clk 0:02:52]} 10. b4 {[%clk 0:02:48]}  Qc7 {[%clk 0:02:14]} 11. Bb2 {[%clk 0:02:45]}  Rae8 {[%clk 0:02:13]} 12. Rfe1 {[%clk 0:02:06]}  h6 {[%clk 0:01:56]} 13. c4 {[%clk 0:02:06]}  d4 {[%clk 0:01:19]} 14. exd4 {[%clk 0:02:00]}  exd4 {[%clk 0:01:04]} 15. Nxd4 {[%clk 0:01:37]}  Nxd4 {[%clk 0:00:53]} 16. Bxd4 {[%clk 0:01:37]}  Rxe2 {[%clk 0:00:34]} 17. Rxe2 {[%clk 0:01:26]}  Ng4 {[%clk 0:00:33]} 18. Nf3 {[%clk 0:00:54]}  Bxd4 {[%clk 0:00:31]} 19. Rd1 {[%clk 0:00:51]}  Bg7 {[%clk 0:00:26]} 20. h3 {[%clk 0:00:47]}  Nf6 {[%clk 0:00:19]} 21. Qxa7 {[%clk 0:00:44]}  Ne4 {[%clk 0:00:16]} 22. Rde1 {[%clk 0:00:32]}  Bc3 {[%clk 0:00:14]} 23. Rxe4 {[%clk 0:00:29]}  Bxe4 {[%clk 0:00:08]} 24. Rxe4 {[%clk 0:00:29]}  Bxb4 {[%clk 0:00:08]} 25. Qb6 {[%clk 0:00:26]}  Qxb6 {[%clk 0:00:04]} 26. cxb6 {[%clk 0:00:25]}  Bc5 {[%clk 0:00:04]} 27. Re5 {[%clk 0:00:19]}  Bxb6 {[%clk 0:00:04]} 28. Rb5 {[%clk 0:00:19]}  Bd8 {[%clk 0:00:03]} 29. Rxb7 {[%clk 0:00:18]}  Bf6 {[%clk 0:00:03]} 30. c5 {[%clk 0:00:10]}  Rc8 {[%clk 0:00:03]} 31. Rb5 {[%clk 0:00:08]}  Ra8 {[%clk 0:00:02]} 32. c6 {[%clk 0:00:08]}  Rxa2 {[%clk 0:00:03]} 33. c7 {[%clk 0:00:07]}  Rc2 {[%clk 0:00:01]} 34. Rb8+ {[%clk 0:00:06]}  Kg7 {[%clk 0:00:02]} 35. c8=Q {[%clk 0:00:07]}  Rxc8 {[%clk 0:00:03]} 36. Rxc8 {[%clk 0:00:07]}  h5 {[%clk 0:00:04]} 37. Rc4 {[%clk 0:00:07]}  g5 {[%clk 0:00:04]} 38. g3 {[%clk 0:00:08]}  Kg6 {[%clk 0:00:05]} 39. Kg2 {[%clk 0:00:08]}  Bg7 {[%clk 0:00:06]} 40. Ra4 {[%clk 0:00:08]}  f6 {[%clk 0:00:06]} 41. Ra6 {[%clk 0:00:08]}  Bf8 {[%clk 0:00:07]} 42. Ne1 {[%clk 0:00:08]}  Bb4 {[%clk 0:00:07]} 43. Nc2 {[%clk 0:00:08]}  Bc3 {[%clk 0:00:08]} 44. f3 {[%clk 0:00:08]}  Be5 {[%clk 0:00:08]} 45. Kf2 {[%clk 0:00:08]}  h4 {[%clk 0:00:08]} 46. gxh4 {[%clk 0:00:08]}  gxh4 {[%clk 0:00:09]} 47. Ke2 {[%clk 0:00:08]}  Kf5 {[%clk 0:00:10]} 48. Kf2 {[%clk 0:00:08]}  Kf4 {[%clk 0:00:11]} 49. Ra4+ {[%clk 0:00:08]}  Kg5 {[%clk 0:00:11]} 50. Kg2 {[%clk 0:00:08]}  Bd6 {[%clk 0:00:10]} 51. Ne1 {[%clk 0:00:08]}  Bg3 {[%clk 0:00:10]} 52. Nd3 {[%clk 0:00:08]}  f5 {[%clk 0:00:10]} 53. f4+ {[%clk 0:00:08]}  Kh5 {[%clk 0:00:10]} 54. Kf3 {[%clk 0:00:09]}  Bh2 {[%clk 0:00:10]} 55. Ra5 {[%clk 0:00:08]}  Kg6 {[%clk 0:00:09]} 56. Ra6+ {[%clk 0:00:09]}  Kh5 {[%clk 0:00:10]} 57. Rf6 {[%clk 0:00:09]}  Bxf4 {[%clk 0:00:06]} 58. Nxf4+ {[%clk 0:00:09]}  Kg5 {[%clk 0:00:06]} 59. Ra6 {[%clk 0:00:09]} 1/2-1/2


[Site "https://www.chess.com"]

[Event "Titled Tuesday Blitz April 05 Early 2022"]
[White "Artemenko, Oleg"]
[Black "Sjugirov, Sanan"]
[WhiteFideId "14201798"]
[BlackFideId "4189302"]
[WhiteElo "2287"]
[BlackElo "2602"]
[Result "0-1"]
[Round "02"]
[TimeControl "180+1"]
[Date "2022.04.05"]
[WhiteClock "0:00:49"]
[BlackClock "0:00:15"]

1. d4 {[%clk 0:03:00]}  Nf6 {[%clk 0:02:59]} 2. Nc3 {[%clk 0:03:01]}  d5 {[%clk 0:02:59]} 3. Bf4 {[%clk 0:03:01]}  Bf5 {[%clk 0:02:59]} 4. f3 {[%clk 0:03:01]}  e6 {[%clk 0:02:57]} 5. g4 {[%clk 0:03:02]}  Bg6 {[%clk 0:02:57]} 6. h4 {[%clk 0:03:02]}  h5 {[%clk 0:02:56]} 7. g5 {[%clk 0:03:02]}  Nfd7 {[%clk 0:02:56]} 8. e3 {[%clk 0:03:03]}  a6 {[%clk 0:02:51]} 9. Bd3 {[%clk 0:03:03]}  Bxd3 {[%clk 0:02:48]} 10. Qxd3 {[%clk 0:03:04]}  g6 {[%clk 0:02:48]} 11. Nge2 {[%clk 0:03:04]}  Nc6 {[%clk 0:02:47]} 12. O-O-O {[%clk 0:03:04]}  Nb6 {[%clk 0:02:43]} 13. e4 {[%clk 0:03:03]}  Bg7 {[%clk 0:02:31]} 14. exd5 {[%clk 0:03:01]}  exd5 {[%clk 0:02:24]} 15. Qe3+ {[%clk 0:02:58]}  Kf8 {[%clk 0:02:19]} 16. Be5 {[%clk 0:02:55]}  Nc4 {[%clk 0:02:10]} 17. Bxg7+ {[%clk 0:02:55]}  Kxg7 {[%clk 0:02:11]} 18. Qf4 {[%clk 0:02:51]}  Re8 {[%clk 0:02:11]} 19. Rhe1 {[%clk 0:02:51]}  Ne3 {[%clk 0:02:09]} 20. Rd2 {[%clk 0:02:40]}  Ng2 {[%clk 0:02:08]} 21. Qf6+ {[%clk 0:02:41]}  Kg8 {[%clk 0:01:57]} 22. Rh1 {[%clk 0:02:30]}  Qxf6 {[%clk 0:01:50]} 23. gxf6 {[%clk 0:02:31]}  Rad8 {[%clk 0:01:51]} 24. Rh2 {[%clk 0:02:27]}  Ne3 {[%clk 0:01:50]} 25. Rh1 {[%clk 0:02:21]}  Re6 {[%clk 0:01:45]} 26. Re1 {[%clk 0:01:43]}  Rxf6 {[%clk 0:01:41]} 27. Rd3 {[%clk 0:01:43]}  Ng2 {[%clk 0:01:35]} 28. Rh1 {[%clk 0:01:40]}  Kg7 {[%clk 0:01:23]} 29. Rdd1 {[%clk 0:01:35]}  Rxf3 {[%clk 0:01:16]} 30. Rh2 {[%clk 0:01:34]}  Ne3 {[%clk 0:01:12]} 31. Rg1 {[%clk 0:01:33]}  Ng4 {[%clk 0:01:08]} 32. Rhg2 {[%clk 0:01:32]}  Ne7 {[%clk 0:01:01]} 33. Re1 {[%clk 0:01:22]}  Nf5 {[%clk 0:00:57]} 34. Ng1 {[%clk 0:01:17]}  Rf4 {[%clk 0:00:52]} 35. Nge2 {[%clk 0:01:14]}  Rf2 {[%clk 0:00:44]} 36. Rxf2 {[%clk 0:01:13]}  Nxf2 {[%clk 0:00:45]} 37. Nf4 {[%clk 0:01:13]}  c6 {[%clk 0:00:43]} 38. Na4 {[%clk 0:01:12]}  Ne4 {[%clk 0:00:38]} 39. c4 {[%clk 0:01:08]}  Nxh4 {[%clk 0:00:34]} 40. Nc5 {[%clk 0:01:04]}  Nxc5 {[%clk 0:00:33]} 41. dxc5 {[%clk 0:01:05]}  dxc4 {[%clk 0:00:30]} 42. Re7 {[%clk 0:01:04]}  Kf6 {[%clk 0:00:28]} 43. Rxb7 {[%clk 0:01:04]}  Nf5 {[%clk 0:00:26]} 44. Rb6 {[%clk 0:01:03]}  Nd4 {[%clk 0:00:26]} 45. Rxa6 {[%clk 0:01:02]}  h4 {[%clk 0:00:26]} 46. Ra4 {[%clk 0:01:01]}  g5 {[%clk 0:00:26]} 47. Nh3 {[%clk 0:00:56]}  g4 {[%clk 0:00:26]} 48. Nf2 {[%clk 0:00:56]}  g3 {[%clk 0:00:26]} 49. Ng4+ {[%clk 0:00:57]}  Kf5 {[%clk 0:00:22]} 50. Nh6+ {[%clk 0:00:56]}  Kf4 {[%clk 0:00:20]} 51. Ra7 {[%clk 0:00:53]}  Rf8 {[%clk 0:00:14]} 52. Re7 {[%clk 0:00:49]}  g2 {[%clk 0:00:13]} 53. Re1 {[%clk 0:00:50]}  g1=Q {[%clk 0:00:13]} 54. Rxg1 {[%clk 0:00:49]}  Ne2+ {[%clk 0:00:13]} 55. Kc2 {[%clk 0:00:50]}  Nxg1 {[%clk 0:00:14]} 56. a4 {[%clk 0:00:50]}  h3 {[%clk 0:00:14]} 57. Ng4 {[%clk 0:00:49]}  Kxg4 {[%clk 0:00:14]} 58. b4 {[%clk 0:00:49]}  cxb3+ {[%clk 0:00:14]} 59. Kb2 {[%clk 0:00:49]}  h2 {[%clk 0:00:15]} 60. a5 {[%clk 0:00:49]}  h1=Q {[%clk 0:00:15]} 61. a6 {[%clk 0:00:49]}  Qg2+ {[%clk 0:00:16]} 62. Ka3 {[%clk 0:00:49]}  Qa2+ {[%clk 0:00:16]} 63. Kb4 {[%clk 0:00:49]}  Qxa6 {[%clk 0:00:16]} 64. Kc3 {[%clk 0:00:49]}  Qb5 {[%clk 0:00:16]} 65. Kb2 {[%clk 0:00:50]}  Qc4 {[%clk 0:00:16]} 66. Kb1 {[%clk 0:00:49]}  Qc2+ {[%clk 0:00:15]} 0-1


[Site "https://www.chess.com"]

[Event "Titled Tuesday Blitz April 05 Early 2022"]
[White "Bacrot, Etienne"]
[Black "Arabidze, Meri"]
[WhiteFideId "605506"]
[BlackFideId "13604040"]
[WhiteElo "2673"]
[BlackElo "2335"]
[Result "1-0"]
[Round "02"]
[TimeControl "180+1"]
[Date "2022.04.05"]
[WhiteClock "0:00:32"]
[BlackClock "0:00:17"]

1. e4 {[%clk 0:03:00]}  c5 {[%clk 0:02:59]} 2. Nf3 {[%clk 0:03:00]}  e6 {[%clk 0:03:00]} 3. b3 {[%clk 0:03:00]}  Nc6 {[%clk 0:02:56]} 4. Bb2 {[%clk 0:02:59]}  Nf6 {[%clk 0:02:56]} 5. e5 {[%clk 0:02:57]}  Ng4 {[%clk 0:02:55]} 6. h3 {[%clk 0:02:55]}  Nh6 {[%clk 0:02:55]} 7. g4 {[%clk 0:02:55]}  d6 {[%clk 0:02:47]} 8. exd6 {[%clk 0:02:53]}  Qxd6 {[%clk 0:02:48]} 9. Na3 {[%clk 0:02:49]}  f6 {[%clk 0:02:38]} 10. g5 {[%clk 0:02:34]}  fxg5 {[%clk 0:02:27]} 11. Nxg5 {[%clk 0:02:34]}  Nd4 {[%clk 0:02:17]} 12. Bg2 {[%clk 0:01:49]}  Qe5+ {[%clk 0:02:02]} 13. Ne4 {[%clk 0:01:48]}  Be7 {[%clk 0:01:57]} 14. Nc4 {[%clk 0:01:43]}  Qf4 {[%clk 0:01:57]} 15. Bxd4 {[%clk 0:01:18]}  cxd4 {[%clk 0:01:58]} 16. Qh5+ {[%clk 0:01:17]}  g6 {[%clk 0:01:38]} 17. Qb5+ {[%clk 0:01:09]}  Kf8 {[%clk 0:01:38]} 18. O-O-O {[%clk 0:00:57]}  Nf5 {[%clk 0:01:38]} 19. Rhe1 {[%clk 0:00:54]}  Kg7 {[%clk 0:01:32]} 20. Nc5 {[%clk 0:00:44]}  Qxf2 {[%clk 0:01:16]} 21. Bxb7 {[%clk 0:00:44]}  Rb8 {[%clk 0:01:12]} 22. Nxe6+ {[%clk 0:00:43]}  Bxe6 {[%clk 0:01:10]} 23. Rxe6 {[%clk 0:00:43]}  Rhd8 {[%clk 0:01:01]} 24. Qe5+ {[%clk 0:00:40]}  Kh6 {[%clk 0:00:25]} 25. Be4 {[%clk 0:00:35]}  Bd6 {[%clk 0:00:17]} 26. Nxd6 {[%clk 0:00:32]} 1-0


[Site "https://www.chess.com"]

[Event "Titled Tuesday Blitz April 05 Early 2022"]
[White "Bas Mas, Jose Joaquin"]
[Black "Pourkashiyan, Atousa"]
[WhiteFideId "22219064"]
[BlackFideId "12502014"]
[WhiteElo "2212"]
[BlackElo "2247"]
[Result "1-0"]
[Round "02"]
[TimeControl "180+1"]
[Date "2022.04.05"]
[WhiteClock "0:00:57"]
[BlackClock "0:00:16"]

1. e4 {[%clk 0:03:00]}  c5 {[%clk 0:02:59]} 2. Nc3 {[%clk 0:03:00]}  a6 {[%clk 0:02:59]} 3. g3 {[%clk 0:03:00]}  b5 {[%clk 0:02:59]} 4. Bg2 {[%clk 0:03:01]}  Bb7 {[%clk 0:02:59]} 5. Nh3 {[%clk 0:03:01]}  Nf6 {[%clk 0:02:58]} 6. d3 {[%clk 0:03:01]}  e6 {[%clk 0:02:58]} 7. O-O {[%clk 0:03:01]}  b4 {[%clk 0:02:50]} 8. Ne2 {[%clk 0:03:01]}  Be7 {[%clk 0:02:47]} 9. f4 {[%clk 0:03:00]}  d5 {[%clk 0:02:31]} 10. e5 {[%clk 0:02:53]}  Nfd7 {[%clk 0:02:29]} 11. g4 {[%clk 0:02:48]}  Nc6 {[%clk 0:02:26]} 12. c3 {[%clk 0:02:46]}  bxc3 {[%clk 0:02:21]} 13. bxc3 {[%clk 0:02:47]}  d4 {[%clk 0:02:20]} 14. cxd4 {[%clk 0:02:44]}  cxd4 {[%clk 0:02:19]} 15. Rb1 {[%clk 0:02:31]}  Qc7 {[%clk 0:02:18]} 16. Nf2 {[%clk 0:02:28]}  Rb8 {[%clk 0:02:14]} 17. Ne4 {[%clk 0:02:28]}  O-O {[%clk 0:02:09]} 18. Qe1 {[%clk 0:02:23]}  Nc5 {[%clk 0:02:09]} 19. Nxc5 {[%clk 0:02:16]}  Bxc5 {[%clk 0:02:10]} 20. Qh4 {[%clk 0:02:16]}  Ne7 {[%clk 0:01:57]} 21. Bxb7 {[%clk 0:01:58]}  Rxb7 {[%clk 0:01:58]} 22. Bd2 {[%clk 0:01:56]}  Nd5 {[%clk 0:01:53]} 23. Qh3 {[%clk 0:01:33]}  Rfb8 {[%clk 0:01:49]} 24. Rxb7 {[%clk 0:01:31]}  Qxb7 {[%clk 0:01:49]} 25. Nc1 {[%clk 0:01:26]}  Ne3 {[%clk 0:01:42]} 26. Re1 {[%clk 0:01:22]}  Qb2 {[%clk 0:01:30]} 27. Nb3 {[%clk 0:01:19]}  Rxb3 {[%clk 0:01:30]} 28. axb3 {[%clk 0:01:17]}  Qxd2 {[%clk 0:01:29]} 29. Qg3 {[%clk 0:01:16]}  Qxd3 {[%clk 0:01:25]} 30. f5 {[%clk 0:01:14]}  exf5 {[%clk 0:01:19]} 31. e6 {[%clk 0:01:14]}  fxe6 {[%clk 0:01:16]} 32. gxf5 {[%clk 0:01:11]}  Qxf5 {[%clk 0:01:12]} 33. Qb8+ {[%clk 0:01:09]}  Bf8 {[%clk 0:01:11]} 34. Qg3 {[%clk 0:01:09]}  h6 {[%clk 0:01:02]} 35. b4 {[%clk 0:01:06]}  d3 {[%clk 0:01:02]} 36. Qxe3 {[%clk 0:01:03]}  Bxb4 {[%clk 0:01:01]} 37. Qxe6+ {[%clk 0:01:03]}  Qxe6 {[%clk 0:01:00]} 38. Rxe6 {[%clk 0:01:03]}  a5 {[%clk 0:00:41]} 39. Kf1 {[%clk 0:01:00]}  Kf7 {[%clk 0:00:40]} 40. Ra6 {[%clk 0:00:59]}  d2 {[%clk 0:00:41]} 41. Ke2 {[%clk 0:00:59]}  Bc3 {[%clk 0:00:39]} 42. h3 {[%clk 0:01:00]}  Bb4 {[%clk 0:00:40]} 43. Kd1 {[%clk 0:01:00]}  Kg8 {[%clk 0:00:39]} 44. Rc6 {[%clk 0:01:00]}  Kh7 {[%clk 0:00:39]} 45. h4 {[%clk 0:01:00]}  g5 {[%clk 0:00:38]} 46. h5 {[%clk 0:00:59]}  a4 {[%clk 0:00:35]} 47. Rc4 {[%clk 0:00:59]}  Ba5 {[%clk 0:00:32]} 48. Rxa4 {[%clk 0:01:00]}  Bc3 {[%clk 0:00:32]} 49. Ra6 {[%clk 0:01:00]}  Kg7 {[%clk 0:00:32]} 50. Rg6+ {[%clk 0:01:00]}  Kh7 {[%clk 0:00:32]} 51. Kc2 {[%clk 0:01:01]}  Bb4 {[%clk 0:00:32]} 52. Re6 {[%clk 0:01:00]}  Ba5 {[%clk 0:00:32]} 53. Ra6 {[%clk 0:01:00]}  Bb4 {[%clk 0:00:32]} 54. Rb6 {[%clk 0:01:01]}  Ba5 {[%clk 0:00:32]} 55. Rb5 {[%clk 0:01:01]}  Bc7 {[%clk 0:00:28]} 56. Kxd2 {[%clk 0:01:01]}  Bf4+ {[%clk 0:00:27]} 57. Ke2 {[%clk 0:01:01]}  g4 {[%clk 0:00:27]} 58. Rb4 {[%clk 0:01:00]}  Bg5 {[%clk 0:00:25]} 59. Rxg4 {[%clk 0:01:00]}  Kg7 {[%clk 0:00:25]} 60. Kf3 {[%clk 0:01:01]}  Kf6 {[%clk 0:00:26]} 61. Ra4 {[%clk 0:01:01]}  Bc1 {[%clk 0:00:24]} 62. Kg4 {[%clk 0:01:01]}  Bd2 {[%clk 0:00:23]} 63. Ra6+ {[%clk 0:01:01]}  Kg7 {[%clk 0:00:22]} 64. Kf5 {[%clk 0:01:02]}  Bc3 {[%clk 0:00:22]} 65. Rg6+ {[%clk 0:01:02]}  Kh7 {[%clk 0:00:22]} 66. Ke6 {[%clk 0:01:02]}  Bg7 {[%clk 0:00:21]} 67. Kf7 {[%clk 0:01:02]}  Kh8 {[%clk 0:00:22]} 68. Ra6 {[%clk 0:01:01]}  Kh7 {[%clk 0:00:19]} 69. Ra8 {[%clk 0:01:01]}  Be5 {[%clk 0:00:19]} 70. Ra5 {[%clk 0:01:00]}  Bg7 {[%clk 0:00:19]} 71. Ra4 {[%clk 0:01:00]}  Be5 {[%clk 0:00:19]} 72. Rg4 {[%clk 0:01:00]}  Bh8 {[%clk 0:00:19]} 73. Ke6 {[%clk 0:00:57]}  Bc3 {[%clk 0:00:19]} 74. Kf5 {[%clk 0:00:57]}  Bg7 {[%clk 0:00:19]} 75. Rg6 {[%clk 0:00:57]}  Bh8 {[%clk 0:00:19]} 76. Re6 {[%clk 0:00:57]}  Bg7 {[%clk 0:00:20]} 77. Re7 {[%clk 0:00:57]}  Kg8 {[%clk 0:00:16]} 78. Kg6 {[%clk 0:00:58]}  Kh8 {[%clk 0:00:16]} 79. Re8+ {[%clk 0:00:57]}  Bf8 {[%clk 0:00:16]} 80. Rxf8# {[%clk 0:00:57]} 1-0


[Site "https://www.chess.com"]